[Event "*** Titled Tuesday Blitz"]
[Site "Chess.com"]
[Date "2021.02.16"]
[Round "11"]
[White "McCarthyStone"]
[Black "KruHor"]
[Result "0-1"]
[WhiteElo "2370"]
[BlackElo "2516"]
[TimeControl "180+1"]
[EndTime "12:10:14 PST"]
[Termination "KruHor won on time"]

1. g3 {[%clk 0:03:00.3]} 1... d5 {[%clk 0:02:56.7]} 2. Bg2 {[%clk 0:03:00]} 2...
e5 {[%clk 0:02:55.6]} 3. d3 {[%clk 0:02:52.8]} 3... Bd6 {[%clk 0:02:54.6]} 4.
Nd2 {[%clk 0:02:52.1]} 4... Nf6 {[%clk 0:02:52.5]} 5. Ngf3 {[%clk 0:02:50.9]}
5... e4 {[%clk 0:02:52.1]} 6. dxe4 {[%clk 0:02:37.1]} 6... dxe4 {[%clk
0:02:51.4]} 7. Ng5 {[%clk 0:02:33.3]} 7... e3 {[%clk 0:02:50.6]} 8. Nde4 {[%clk
0:02:33.6]} 8... h6 {[%clk 0:02:43.7]} 9. Nxf6+ {[%clk 0:02:30]} 9... Qxf6
{[%clk 0:02:40.8]} 10. Ne4 {[%clk 0:02:28.5]} 10... exf2+ {[%clk 0:02:40.2]} 11.
Nxf2 {[%clk 0:02:26.1]} 11... Bc5 {[%clk 0:02:30]} 12. O-O {[%clk 0:02:23.1]}
12... O-O {[%clk 0:02:28.2]} 13. Kh1 {[%clk 0:02:05.9]} 13... Qe7 {[%clk
0:02:25.8]} 14. Nd3 {[%clk 0:02:00.6]} 14... Nc6 {[%clk 0:02:24.2]} 15. Nxc5
{[%clk 0:01:58.4]} 15... Qxc5 {[%clk 0:02:23.2]} 16. c3 {[%clk 0:01:59]} 16...
Be6 {[%clk 0:02:18.9]} 17. Bf4 {[%clk 0:01:57.4]} 17... Rad8 {[%clk 0:02:16.7]}
18. Qa4 {[%clk 0:01:49.1]} 18... Bd5 {[%clk 0:02:11.4]} 19. e4 {[%clk
0:01:46.9]} 19... Bc4 {[%clk 0:02:10.2]} 20. Rfd1 {[%clk 0:01:37.4]} 20... Bb5
{[%clk 0:01:48.8]} 21. Qb3 {[%clk 0:01:26.9]} 21... Na5 {[%clk 0:01:36.7]} 22.
Qb4 {[%clk 0:01:07.3]} 22... Qb6 {[%clk 0:01:35.6]} 23. Bxc7 {[%clk 0:01:05.1]}
23... Qxc7 {[%clk 0:01:30.5]} 24. Qxb5 {[%clk 0:01:05.5]} 24... Nc4 {[%clk
0:01:29.6]} 25. Rd5 {[%clk 0:00:42.3]} 25... Ne3 {[%clk 0:01:26.1]} 26. Rc5
{[%clk 0:00:38.8]} 26... Qe7 {[%clk 0:01:23.6]} 27. Re5 {[%clk 0:00:28.5]} 27...
Qf6 {[%clk 0:01:22.8]} 28. Rd5 {[%clk 0:00:06.4]} 28... Qf2 {[%clk 0:00:47.6]}
29. Rg1 {[%clk 0:00:01.8]} 29... Rfe8 {[%clk 0:00:37.3]} 30. Qxb7 {[%clk
0:00:01.4]} 30... Rxd5 {[%clk 0:00:31.6]} 31. exd5 {[%clk 0:00:02.3]} 31... Nxg2
{[%clk 0:00:30.8]} 32. d6 {[%clk 0:00:01.5]} 32... Ne1 {[%clk 0:00:18.6]} 33. d7
{[%clk 0:00:01.1]} 33... Rf8 {[%clk 0:00:17.8]} 0-1

[Event "*** Titled Tuesday Blitz"]
[Site "Chess.com"]
[Date "2021.02.16"]
[Round "11"]
[White "MergenKakabaev"]
[Black "Kapitan_Bayan"]
[Result "1/2-1/2"]
[WhiteElo "2396"]
[BlackElo "2482"]
[TimeControl "180+1"]
[EndTime "12:10:15 PST"]
[Termination "Game drawn by repetition"]

1. e4 {[%clk 0:03:00]} 1... Nc6 {[%clk 0:02:59.2]} 2. Nf3 {[%clk 0:02:56.5]}
2... d5 {[%clk 0:02:58.8]} 3. exd5 {[%clk 0:02:54.5]} 3... Qxd5 {[%clk
0:02:59.7]} 4. Nc3 {[%clk 0:02:52.8]} 4... Qa5 {[%clk 0:03:00.2]} 5. Bc4 {[%clk
0:02:49.9]} 5... Bg4 {[%clk 0:03:00.4]} 6. h3 {[%clk 0:02:43]} 6... Qh5 {[%clk
0:02:58.4]} 7. O-O {[%clk 0:02:28.1]} 7... Bxf3 {[%clk 0:02:55.3]} 8. Qxf3
{[%clk 0:02:22.5]} 8... Qxf3 {[%clk 0:02:55.4]} 9. gxf3 {[%clk 0:02:23.4]} 9...
Nd4 {[%clk 0:02:55.3]} 10. Nb5 {[%clk 0:02:09.9]} 10... Nxc2 {[%clk 0:02:47.9]}
11. Nxc7+ {[%clk 0:02:07.5]} 11... Kd7 {[%clk 0:02:47.2]} 12. Nxa8 {[%clk
0:02:07.2]} 12... Nxa1 {[%clk 0:02:47.6]} 13. d3 {[%clk 0:01:53.8]} 13... Nc2
{[%clk 0:02:42.1]} 14. Bxf7 {[%clk 0:01:45.5]} 14... Nh6 {[%clk 0:02:33.7]} 15.
Bxh6 {[%clk 0:01:44]} 15... gxh6 {[%clk 0:02:34.6]} 16. Rc1 {[%clk 0:01:43.5]}
16... Bg7 {[%clk 0:02:20.1]} 17. Nb6+ {[%clk 0:01:30.8]} 17... axb6 {[%clk
0:02:19.7]} 18. Rxc2 {[%clk 0:01:30.7]} 18... Kd6 {[%clk 0:01:58.3]} 19. a4
{[%clk 0:01:15.8]} 19... Rf8 {[%clk 0:01:57]} 20. Bh5 {[%clk 0:01:13.5]} 20...
Rf4 {[%clk 0:01:54.2]} 21. b3 {[%clk 0:01:04.3]} 21... Rh4 {[%clk 0:01:29.4]}
22. Bg4 {[%clk 0:01:02.6]} 22... h5 {[%clk 0:01:29.5]} 23. Bc8 {[%clk
0:00:57.9]} 23... Rb4 {[%clk 0:01:22.1]} 24. Bxb7 {[%clk 0:00:56]} 24... Rxb3
{[%clk 0:01:22.6]} 25. Be4 {[%clk 0:00:48.9]} 25... Bd4 {[%clk 0:01:18.2]} 26.
Rc6+ {[%clk 0:00:38.8]} 26... Kd7 {[%clk 0:01:11.9]} 27. Rh6 {[%clk 0:00:34.9]}
27... Ra3 {[%clk 0:01:02.6]} 28. Bc6+ {[%clk 0:00:30.2]} 28... Kc7 {[%clk
0:01:01]} 29. Bb5 {[%clk 0:00:30.3]} 29... Ra2 {[%clk 0:00:53.6]} 30. Rxh5
{[%clk 0:00:24.9]} 30... Rxf2 {[%clk 0:00:51.8]} 31. Rd5 {[%clk 0:00:21.8]}
31... Be3 {[%clk 0:00:45.1]} 32. Re5 {[%clk 0:00:18.9]} 32... Rxf3+ {[%clk
0:00:40.5]} 33. Kg2 {[%clk 0:00:18.7]} 33... Rf2+ {[%clk 0:00:41]} 34. Kg1
{[%clk 0:00:16.9]} 34... Rf3+ {[%clk 0:00:31.8]} 35. Kg2 {[%clk 0:00:16.9]}
35... Rf2+ {[%clk 0:00:31.1]} 36. Kg1 {[%clk 0:00:16.6]} 36... Rf3+ {[%clk
0:00:17.1]} 1/2-1/2

[Event "*** Titled Tuesday Blitz"]
[Site "Chess.com"]
[Date "2021.02.16"]
[Round "11"]
[White "GMKrikor"]
[Black "Zurability"]
[Result "1-0"]
[WhiteElo "2806"]
[BlackElo "2641"]
[TimeControl "180+1"]
[EndTime "12:10:16 PST"]
[Termination "GMKrikor won by resignation"]

1. Nf3 {[%clk 0:03:00.9]} 1... d5 {[%clk 0:02:59.7]} 2. c4 {[%clk 0:03:01]} 2...
d4 {[%clk 0:02:59.1]} 3. b4 {[%clk 0:03:01]} 3... f6 {[%clk 0:02:58.9]} 4. e3
{[%clk 0:03:00.2]} 4... e5 {[%clk 0:02:59.5]} 5. c5 {[%clk 0:03:00.6]} 5... Nc6
{[%clk 0:02:56.9]} 6. Qb3 {[%clk 0:02:42.3]} 6... a5 {[%clk 0:02:53.5]} 7. Bc4
{[%clk 0:02:31.2]} 7... Nh6 {[%clk 0:02:53.6]} 8. O-O {[%clk 0:01:54.1]} 8...
axb4 {[%clk 0:02:49.6]} 9. exd4 {[%clk 0:01:54.4]} 9... Nxd4 {[%clk 0:02:40.6]}
10. Nxd4 {[%clk 0:01:54.3]} 10... Qxd4 {[%clk 0:02:40.7]} 11. Bb2 {[%clk
0:01:54.1]} 11... Qh4 {[%clk 0:02:26.9]} 12. d4 {[%clk 0:01:49.7]} 12... Bd7
{[%clk 0:02:04.4]} 13. Nd2 {[%clk 0:01:43]} 13... Bc6 {[%clk 0:01:51.3]} 14. Nf3
{[%clk 0:01:22.3]} 14... Qg4 {[%clk 0:01:37.2]} 15. h3 {[%clk 0:01:11.5]} 15...
Qh5 {[%clk 0:01:27.8]} 16. dxe5 {[%clk 0:00:56.9]} 16... O-O-O {[%clk
0:01:00.4]} 17. exf6 {[%clk 0:00:47.8]} 17... gxf6 {[%clk 0:00:55.3]} 18. Bxf6
{[%clk 0:00:34.4]} 18... Bxc5 {[%clk 0:00:55.2]} 19. Bxh8 {[%clk 0:00:30.1]}
19... Rxh8 {[%clk 0:00:54.5]} 20. Rad1 {[%clk 0:00:22]} 20... Bxf3 {[%clk
0:00:46.6]} 21. Qxf3 {[%clk 0:00:22]} 21... Qxf3 {[%clk 0:00:46.7]} 22. gxf3
{[%clk 0:00:22.9]} 22... Rf8 {[%clk 0:00:44.3]} 23. Kg2 {[%clk 0:00:20.6]} 23...
Rf6 {[%clk 0:00:40.7]} 24. Rfe1 {[%clk 0:00:21]} 24... c6 {[%clk 0:00:38.3]} 25.
Be6+ {[%clk 0:00:20.5]} 25... Kc7 {[%clk 0:00:37.7]} 26. Rd7+ {[%clk 0:00:20.7]}
26... Kb6 {[%clk 0:00:37.7]} 27. Rxh7 {[%clk 0:00:21.6]} 27... Rg6+ {[%clk
0:00:27.2]} 28. Kf1 {[%clk 0:00:20.8]} 28... Rf6 {[%clk 0:00:27.7]} 29. Re2
{[%clk 0:00:17.8]} 29... Bd4 {[%clk 0:00:25.7]} 30. h4 {[%clk 0:00:16.1]} 30...
c5 {[%clk 0:00:23.8]} 31. h5 {[%clk 0:00:16.7]} 31... Kb5 {[%clk 0:00:18.8]} 32.
Rxb7+ {[%clk 0:00:15.8]} 32... Kc6 {[%clk 0:00:19.3]} 33. Rh7 {[%clk 0:00:15.3]}
33... Kd6 {[%clk 0:00:19.9]} 34. Bc4 {[%clk 0:00:10.7]} 34... Nf5 {[%clk
0:00:19.7]} 35. Rf7 {[%clk 0:00:10.9]} 35... Rxf7 {[%clk 0:00:14.1]} 36. Bxf7
{[%clk 0:00:11.8]} 36... Nh6 {[%clk 0:00:15]} 37. Re6+ {[%clk 0:00:09.5]} 1-0

[Event "*** Titled Tuesday Blitz"]
[Site "Chess.com"]
[Date "2021.02.16"]
[Round "11"]
[White "bylavochka"]
[Black "ARTHURMOTIVATOR"]
[Result "0-1"]
[WhiteElo "2109"]
[BlackElo "2333"]
[TimeControl "180+1"]
[EndTime "12:10:16 PST"]
[Termination "ARTHURMOTIVATOR won by checkmate"]

1. e4 {[%clk 0:03:00.9]} 1... e5 {[%clk 0:02:51.7]} 2. Nc3 {[%clk 0:03:00.7]}
2... Nc6 {[%clk 0:02:49.1]} 3. g3 {[%clk 0:02:59.4]} 3... Bc5 {[%clk 0:02:39.8]}
4. Bg2 {[%clk 0:02:57.7]} 4... d6 {[%clk 0:02:38.9]} 5. Nge2 {[%clk 0:02:57.6]}
5... h5 {[%clk 0:02:38.5]} 6. h3 {[%clk 0:02:51.4]} 6... Nge7 {[%clk 0:02:31.1]}
7. Na4 {[%clk 0:02:50.2]} 7... Bb6 {[%clk 0:02:26.5]} 8. Nxb6 {[%clk 0:02:50.1]}
8... axb6 {[%clk 0:02:25.7]} 9. d3 {[%clk 0:02:51]} 9... Be6 {[%clk 0:02:24]}
10. a3 {[%clk 0:02:39.2]} 10... Qd7 {[%clk 0:02:23.8]} 11. f4 {[%clk 0:02:36.6]}
11... f5 {[%clk 0:02:22.8]} 12. exf5 {[%clk 0:02:15.6]} 12... Bxf5 {[%clk
0:02:12.8]} 13. fxe5 {[%clk 0:02:13.7]} 13... dxe5 {[%clk 0:02:00.3]} 14. Bg5
{[%clk 0:01:59.2]} 14... O-O-O {[%clk 0:01:55.8]} 15. Qd2 {[%clk 0:01:51.3]}
15... Qe6 {[%clk 0:01:52.6]} 16. Qe3 {[%clk 0:01:30.1]} 16... Nd5 {[%clk
0:01:39.9]} 17. Qd2 {[%clk 0:01:09]} 17... Rd7 {[%clk 0:01:33.7]} 18. O-O-O
{[%clk 0:01:08.2]} 18... Nf6 {[%clk 0:01:19.9]} 19. Nc3 {[%clk 0:01:06.8]} 19...
Nd4 {[%clk 0:01:15.7]} 20. Rde1 {[%clk 0:00:54.8]} 20... Rhd8 {[%clk 0:01:11.5]}
21. Qf2 {[%clk 0:00:39.2]} 21... b5 {[%clk 0:00:35.5]} 22. Bf4 {[%clk 0:00:19]}
22... b4 {[%clk 0:00:31]} 23. axb4 {[%clk 0:00:12.2]} 23... Qa6 {[%clk
0:00:29.9]} 24. Kb1 {[%clk 0:00:12.1]} 24... Nxc2 {[%clk 0:00:28.3]} 25. Kxc2
{[%clk 0:00:09.8]} 25... Bxd3+ {[%clk 0:00:27.6]} 26. Kb3 {[%clk 0:00:06.8]}
26... Bc4+ {[%clk 0:00:26.7]} 27. Kc2 {[%clk 0:00:07.1]} 27... exf4 {[%clk
0:00:24.9]} 28. Qxf4 {[%clk 0:00:06.1]} 28... Bd3+ {[%clk 0:00:23.7]} 29. Kb3
{[%clk 0:00:06.2]} 29... Rd4 {[%clk 0:00:21.2]} 30. Be4 {[%clk 0:00:02.6]} 30...
Qc4+ {[%clk 0:00:18.1]} 31. Ka3 {[%clk 0:00:01.8]} 31... Nxe4 {[%clk 0:00:15.3]}
32. Nxe4 {[%clk 0:00:01.2]} 32... Qxb4+ {[%clk 0:00:14.9]} 33. Ka2 {[%clk
0:00:01.3]} 33... Qa4# {[%clk 0:00:15.3]} 0-1

[Event "*** Titled Tuesday Blitz"]
[Site "Chess.com"]
[Date "2021.02.16"]
[Round "11"]
[White "Happy1712Drummer"]
[Black "markowskitomasz"]
[Result "1-0"]
[WhiteElo "2471"]
[BlackElo "2591"]
[TimeControl "180+1"]
[EndTime "12:10:17 PST"]
[Termination "Happy1712Drummer won on time"]

1. Nf3 {[%clk 0:03:00.9]} 1... c5 {[%clk 0:02:59.3]} 2. c4 {[%clk 0:02:57.1]}
2... g6 {[%clk 0:02:59.2]} 3. Nc3 {[%clk 0:02:56]} 3... Bg7 {[%clk 0:02:58.9]}
4. g3 {[%clk 0:02:56.6]} 4... Nc6 {[%clk 0:02:58.4]} 5. Bg2 {[%clk 0:02:57]}
5... e6 {[%clk 0:02:58.6]} 6. a3 {[%clk 0:02:55.6]} 6... Nge7 {[%clk 0:02:58.1]}
7. b4 {[%clk 0:02:54.5]} 7... b6 {[%clk 0:02:43.5]} 8. Rb1 {[%clk 0:02:51.3]}
8... O-O {[%clk 0:02:42.8]} 9. O-O {[%clk 0:02:45.3]} 9... d6 {[%clk 0:02:42.7]}
10. e3 {[%clk 0:02:38.3]} 10... Bb7 {[%clk 0:02:41.1]} 11. d4 {[%clk 0:02:35.7]}
11... cxd4 {[%clk 0:02:35.1]} 12. Nxd4 {[%clk 0:02:30.1]} 12... Nxd4 {[%clk
0:02:23.3]} 13. Bxb7 {[%clk 0:02:28.2]} 13... Rb8 {[%clk 0:02:22.4]} 14. Bg2
{[%clk 0:02:26.6]} 14... Ndc6 {[%clk 0:02:15.3]} 15. Bb2 {[%clk 0:02:24]} 15...
Ne5 {[%clk 0:02:11.8]} 16. Nb5 {[%clk 0:02:05.7]} 16... Nf5 {[%clk 0:01:50.5]}
17. Nxa7 {[%clk 0:01:00.8]} 17... Qc7 {[%clk 0:01:28.9]} 18. Bxe5 {[%clk
0:00:52.8]} 18... dxe5 {[%clk 0:01:01.1]} 19. Nc6 {[%clk 0:00:52.3]} 19... Ra8
{[%clk 0:00:57.8]} 20. Qb3 {[%clk 0:00:42.8]} 20... Nd6 {[%clk 0:00:49.9]} 21.
c5 {[%clk 0:00:20.2]} 21... Nb7 {[%clk 0:00:46.1]} 22. cxb6 {[%clk 0:00:18]}
22... Qxb6 {[%clk 0:00:47]} 23. a4 {[%clk 0:00:17]} 23... Kh8 {[%clk 0:00:40.1]}
24. a5 {[%clk 0:00:16.2]} 24... Qb5 {[%clk 0:00:39.8]} 25. Rfc1 {[%clk
0:00:16.1]} 25... Rac8 {[%clk 0:00:31.2]} 26. Bf1 {[%clk 0:00:15.4]} 26... Qd5
{[%clk 0:00:26]} 27. Qxd5 {[%clk 0:00:15]} 27... exd5 {[%clk 0:00:26.9]} 28. b5
{[%clk 0:00:14.8]} 28... d4 {[%clk 0:00:20.2]} 29. exd4 {[%clk 0:00:14.1]} 29...
exd4 {[%clk 0:00:21.1]} 30. a6 {[%clk 0:00:14.1]} 30... Nd6 {[%clk 0:00:21.4]}
31. b6 {[%clk 0:00:13.1]} 31... Ne4 {[%clk 0:00:03.4]} 32. b7 {[%clk 0:00:12.7]}
32... Rxc6 {[%clk 0:00:02.4]} 33. Rxc6 {[%clk 0:00:11.7]} 1-0

[Event "*** Titled Tuesday Blitz"]
[Site "Chess.com"]
[Date "2021.02.16"]
[Round "11"]
[White "alejogarcia1999"]
[Black "noblerone"]
[Result "0-1"]
[WhiteElo "2484"]
[BlackElo "2412"]
[TimeControl "180+1"]
[EndTime "12:10:19 PST"]
[Termination "noblerone won by resignation"]

1. d4 {[%clk 0:03:00.9]} 1... d5 {[%clk 0:03:00.1]} 2. c4 {[%clk 0:03:01]} 2...
c6 {[%clk 0:03:00.1]} 3. e3 {[%clk 0:03:01.1]} 3... Nf6 {[%clk 0:02:59.3]} 4.
Nc3 {[%clk 0:03:01.4]} 4... a6 {[%clk 0:02:59.3]} 5. Nf3 {[%clk 0:03:01.6]} 5...
b5 {[%clk 0:02:50.8]} 6. b3 {[%clk 0:02:59.7]} 6... Bg4 {[%clk 0:02:50.3]} 7.
Bd3 {[%clk 0:02:56]} 7... e6 {[%clk 0:02:49.6]} 8. O-O {[%clk 0:02:55.4]} 8...
Be7 {[%clk 0:02:40.9]} 9. h3 {[%clk 0:02:54.7]} 9... Bh5 {[%clk 0:02:40.9]} 10.
Bb2 {[%clk 0:02:51.1]} 10... O-O {[%clk 0:02:14.9]} 11. e4 {[%clk 0:02:50.7]}
11... b4 {[%clk 0:01:56.5]} 12. e5 {[%clk 0:02:43.3]} 12... bxc3 {[%clk
0:01:56.4]} 13. exf6 {[%clk 0:02:43.3]} 13... cxb2 {[%clk 0:01:35.4]} 14. fxe7
{[%clk 0:02:42.9]} 14... Qxe7 {[%clk 0:01:24.4]} 15. Rb1 {[%clk 0:02:41]} 15...
Nd7 {[%clk 0:01:05.9]} 16. Rxb2 {[%clk 0:02:35.9]} 16... Nf6 {[%clk 0:01:02.7]}
17. Be2 {[%clk 0:02:17]} 17... a5 {[%clk 0:01:01.1]} 18. Rc2 {[%clk 0:02:03.2]}
18... Bg6 {[%clk 0:00:50.8]} 19. Rc1 {[%clk 0:02:02.2]} 19... Rfc8 {[%clk
0:00:49.2]} 20. Ne5 {[%clk 0:02:02]} 20... Nd7 {[%clk 0:00:47.6]} 21. f4 {[%clk
0:01:58.4]} 21... Nxe5 {[%clk 0:00:47.2]} 22. fxe5 {[%clk 0:01:58.5]} 22... Be4
{[%clk 0:00:48.1]} 23. Bd3 {[%clk 0:01:56.4]} 23... Bxd3 {[%clk 0:00:44]} 24.
Qxd3 {[%clk 0:01:57.3]} 24... a4 {[%clk 0:00:42.7]} 25. cxd5 {[%clk 0:01:47.1]}
25... cxd5 {[%clk 0:00:42.8]} 26. Rxc8+ {[%clk 0:01:46.3]} 26... Rxc8 {[%clk
0:00:43.7]} 27. bxa4 {[%clk 0:01:46.6]} 27... Qa7 {[%clk 0:00:43.6]} 28. Rb1
{[%clk 0:01:32.4]} 28... Qxa4 {[%clk 0:00:39.5]} 29. Qc3 {[%clk 0:01:32.1]}
29... Ra8 {[%clk 0:00:36.4]} 30. Rb7 {[%clk 0:01:29.3]} 30... h6 {[%clk
0:00:33.5]} 31. a3 {[%clk 0:01:21.6]} 31... Qxa3 {[%clk 0:00:26]} 32. Rb8+
{[%clk 0:01:15.6]} 32... Kh7 {[%clk 0:00:26.3]} 33. Qc2+ {[%clk 0:01:14.4]}
33... g6 {[%clk 0:00:26.6]} 34. Rb7 {[%clk 0:01:13.4]} 34... Ra7 {[%clk
0:00:23]} 35. Rxa7 {[%clk 0:01:03.8]} 35... Qxa7 {[%clk 0:00:23.9]} 36. Qc5
{[%clk 0:01:01.3]} 36... Qd7 {[%clk 0:00:21.9]} 37. Kf2 {[%clk 0:00:57.9]} 37...
Kg7 {[%clk 0:00:21.1]} 38. g4 {[%clk 0:00:56]} 38... Qa4 {[%clk 0:00:20.7]} 39.
Qc3 {[%clk 0:00:54.7]} 39... Qa2+ {[%clk 0:00:20.5]} 40. Kg3 {[%clk 0:00:54.6]}
40... Qe2 {[%clk 0:00:20.8]} 41. Qf3 {[%clk 0:00:53.6]} 41... Qxf3+ {[%clk
0:00:21.1]} 42. Kxf3 {[%clk 0:00:53.7]} 42... f6 {[%clk 0:00:21.5]} 43. Kf4
{[%clk 0:00:52.4]} 43... Kf7 {[%clk 0:00:20.6]} 44. h4 {[%clk 0:00:52.4]} 44...
g5+ {[%clk 0:00:19.7]} 45. hxg5 {[%clk 0:00:51.7]} 45... hxg5+ {[%clk
0:00:19.8]} 46. Ke3 {[%clk 0:00:50.8]} 46... fxe5 {[%clk 0:00:20.3]} 47. dxe5
{[%clk 0:00:51.7]} 47... Ke7 {[%clk 0:00:20.8]} 48. Kd3 {[%clk 0:00:52.2]} 48...
Kd7 {[%clk 0:00:21.4]} 49. Kc3 {[%clk 0:00:52.8]} 49... Kc7 {[%clk 0:00:21.4]}
50. Kd3 {[%clk 0:00:50.2]} 50... Kb6 {[%clk 0:00:21.2]} 51. Kd2 {[%clk
0:00:49.4]} 51... Kb5 {[%clk 0:00:21]} 52. Kd3 {[%clk 0:00:49.2]} 52... Kb4
{[%clk 0:00:21.3]} 53. Kd4 {[%clk 0:00:49.3]} 53... Kb5 {[%clk 0:00:20.9]} 54.
Kd3 {[%clk 0:00:49]} 54... Kc5 {[%clk 0:00:21.4]} 55. Ke3 {[%clk 0:00:49]} 55...
Kc4 {[%clk 0:00:21.4]} 56. Kd2 {[%clk 0:00:48.9]} 56... Kd4 {[%clk 0:00:21.8]}
0-1

[Event "*** Titled Tuesday Blitz"]
[Site "Chess.com"]
[Date "2021.02.16"]
[Round "11"]
[White "ural58"]
[Black "Chesswizard_2007"]
[Result "0-1"]
[WhiteElo "2541"]
[BlackElo "2708"]
[TimeControl "180+1"]
[EndTime "12:10:23 PST"]
[Termination "Chesswizard_2007 won by resignation"]

1. e4 {[%clk 0:03:00.9]} 1... c5 {[%clk 0:02:53.3]} 2. b3 {[%clk 0:03:00]} 2...
Nc6 {[%clk 0:02:51.4]} 3. Bb2 {[%clk 0:03:00.1]} 3... d6 {[%clk 0:02:50]} 4. Bb5
{[%clk 0:03:00.1]} 4... Bd7 {[%clk 0:02:47.2]} 5. Ne2 {[%clk 0:03:00.3]} 5...
Nf6 {[%clk 0:02:47]} 6. Bxf6 {[%clk 0:02:49.8]} 6... gxf6 {[%clk 0:02:46]} 7.
O-O {[%clk 0:02:45.4]} 7... a6 {[%clk 0:02:45.3]} 8. Bxc6 {[%clk 0:02:45.2]}
8... Bxc6 {[%clk 0:02:46.2]} 9. Nbc3 {[%clk 0:02:44.8]} 9... e6 {[%clk
0:02:45.7]} 10. d4 {[%clk 0:02:44.8]} 10... cxd4 {[%clk 0:02:44.6]} 11. Nxd4
{[%clk 0:02:45.7]} 11... Bd7 {[%clk 0:02:44]} 12. Qh5 {[%clk 0:02:45.1]} 12...
Be7 {[%clk 0:02:40.6]} 13. Rad1 {[%clk 0:02:44.1]} 13... Qc7 {[%clk 0:02:38.8]}
14. Rd3 {[%clk 0:02:43.2]} 14... Rf8 {[%clk 0:02:29.1]} 15. Nce2 {[%clk
0:02:38.1]} 15... Qc5 {[%clk 0:02:24.6]} 16. Qxh7 {[%clk 0:02:34.5]} 16... Qg5
{[%clk 0:02:17.6]} 17. f4 {[%clk 0:02:26.9]} 17... Qa5 {[%clk 0:02:15.8]} 18. a4
{[%clk 0:02:22.1]} 18... O-O-O {[%clk 0:02:11]} 19. f5 {[%clk 0:02:19.6]} 19...
e5 {[%clk 0:02:07]} 20. Nf3 {[%clk 0:02:17]} 20... Bc6 {[%clk 0:02:06.9]} 21.
Nc3 {[%clk 0:02:10.2]} 21... Qc5+ {[%clk 0:01:54.9]} 22. Kh1 {[%clk 0:02:08.5]}
22... d5 {[%clk 0:01:46.9]} 23. exd5 {[%clk 0:02:08.5]} 23... Bxd5 {[%clk
0:01:47.2]} 24. Nxd5 {[%clk 0:02:06.9]} 24... Rxd5 {[%clk 0:01:48.1]} 25. Rxd5
{[%clk 0:02:04.2]} 25... Qxd5 {[%clk 0:01:49]} 26. Qh6 {[%clk 0:01:57.2]} 26...
e4 {[%clk 0:01:42.2]} 27. Ng1 {[%clk 0:01:57.3]} 27... Qe5 {[%clk 0:01:34.8]}
28. Qf4 {[%clk 0:01:56.4]} 28... Bb4 {[%clk 0:01:27.4]} 29. Qxe5 {[%clk
0:01:55.7]} 29... fxe5 {[%clk 0:01:28.3]} 30. Rd1 {[%clk 0:01:43.9]} 30... e3
{[%clk 0:01:24.7]} 31. Ne2 {[%clk 0:01:43.9]} 31... Bd2 {[%clk 0:01:20]} 32. g3
{[%clk 0:01:37.3]} 32... Kd7 {[%clk 0:01:18.3]} 33. Kg2 {[%clk 0:01:37.8]} 33...
Ke7 {[%clk 0:01:18.3]} 34. Kf3 {[%clk 0:01:38.2]} 34... Rc8 {[%clk 0:01:17.5]}
35. c4 {[%clk 0:01:37.9]} 35... b5 {[%clk 0:01:12.4]} 36. axb5 {[%clk
0:01:37.1]} 36... axb5 {[%clk 0:01:13.3]} 37. cxb5 {[%clk 0:01:34.6]} 37... Rb8
{[%clk 0:01:13.1]} 38. Ra1 {[%clk 0:01:34.1]} 38... Rxb5 {[%clk 0:01:11.8]} 39.
h4 {[%clk 0:01:31.1]} 39... Rxb3 {[%clk 0:01:09.4]} 40. Ra6 {[%clk 0:01:31]}
40... Rb1 {[%clk 0:01:08.1]} 41. f6+ {[%clk 0:01:29.4]} 41... Kd7 {[%clk
0:01:07.8]} 42. g4 {[%clk 0:01:23.1]} 42... Rf1+ {[%clk 0:01:04.7]} 43. Ke4
{[%clk 0:01:22.8]} 43... Rf2 {[%clk 0:01:03.3]} 44. Ra7+ {[%clk 0:01:19.9]}
44... Kd6 {[%clk 0:00:51.3]} 45. Ra6+ {[%clk 0:01:18.2]} 45... Kc5 {[%clk
0:00:48.4]} 46. Ng3 {[%clk 0:01:14]} 46... Rg2 {[%clk 0:00:32.4]} 47. Kf3 {[%clk
0:01:10.7]} 47... Rf2+ {[%clk 0:00:32.9]} 48. Ke4 {[%clk 0:01:10.9]} 48... Rg2
{[%clk 0:00:33.5]} 49. Kf3 {[%clk 0:01:01.1]} 49... Rxg3+ {[%clk 0:00:34]} 50.
Kxg3 {[%clk 0:01:01.1]} 50... e2 {[%clk 0:00:34.7]} 51. Ra1 {[%clk 0:00:59.1]}
51... e1=Q+ {[%clk 0:00:35.2]} 52. Rxe1 {[%clk 0:00:59]} 52... Bxe1+ {[%clk
0:00:36.1]} 53. Kh3 {[%clk 0:00:58.5]} 53... Kd5 {[%clk 0:00:33.7]} 54. g5
{[%clk 0:00:59.1]} 54... Ke6 {[%clk 0:00:32.5]} 55. Kg4 {[%clk 0:01:00]} 55...
Bb4 {[%clk 0:00:26.4]} 56. h5 {[%clk 0:00:59]} 56... Bf8 {[%clk 0:00:24.9]} 57.
h6 {[%clk 0:00:59.3]} 57... Bxh6 {[%clk 0:00:23.3]} 58. gxh6 {[%clk 0:00:59.6]}
58... Kxf6 {[%clk 0:00:23.9]} 59. Kh5 {[%clk 0:01:00.5]} 59... e4 {[%clk
0:00:23.4]} 60. Kg4 {[%clk 0:01:00.5]} 60... Kg6 {[%clk 0:00:23.7]} 61. Kf4
{[%clk 0:01:01.4]} 61... f5 {[%clk 0:00:23.8]} 0-1